bitfinex-derivatives/quotes_BTCF0:USTF0_20240825
["timestamp","ask_amount","ask_price","bid_price","bid_amount"]
[1724607566138,0.0004,64149.0,64148.0,0.088307]
[1724607567744,0.03855245,64149.0,64148.0,0.088307]
[1724607567933,0.0004,64149.0,64148.0,0.088307]
[1724607568936,0.03855245,64149.0,64148.0,0.088307]
[1724607569243,0.0004,64149.0,64148.0,0.088307]
[1724607571938,0.0004,64149.0,64148.0,0.16609856]
[1724607572537,0.0004,64149.0,64148.0,0.2848228]
[1724607573835,0.0004,64149.0,64148.0,0.28481222]
[1724607574041,0.0004,64149.0,64148.0,0.20703124]
[1724607574240,0.0004,64149.0,64148.0,0.28481224]
[1724607574544,0.0004,64149.0,64148.0,0.37482352]
[1724607575245,0.0004,64149.0,64148.0,0.36482352]
[1724607575938,0.0004,64149.0,64148.0,0.36481972]
[1724607576139,0.0004,64149.0,64148.0,0.28703208]
[1724607576444,0.0004,64149.0,64148.0,0.36481727]
[1724607576640,0.0004,64149.0,64148.0,0.24609219]
[1724607576844,0.0004,64149.0,64148.0,0.27481738]
[1724607577046,0.0004,64149.0,64148.0,0.36481738]
[1724607577746,0.0004,64149.0,64148.0,0.38481738]
[1724607578635,0.0004,64149.0,64148.0,0.26609219]
[1724607581149,0.0004,64149.0,64148.0,0.38481792]
[1724607581848,0.0004,64149.0,64148.0,0.26609219]
[1724607582147,0.0004,64149.0,64148.0,0.38481842]
[1724607582334,0.0004,64149.0,64148.0,0.38481841]
[1724607583655,0.0004,64149.0,64148.0,0.38482498]
[1724607584339,0.0004,64149.0,64148.0,0.30703322]
[1724607584742,0.0004,64149.0,64148.0,0.168307]
[1724607584940,0.03855127,64149.0,64148.0,0.168307]
[1724607585141,0.0004,64149.0,64148.0,0.178307]
[1724607585548,0.14066043,64149.0,64148.0,0.178307]
[1724607585845,0.03855127,64149.0,64148.0,0.178307]
[1724607586043,0.11604162,64154.0,64149.0,0.46768]
[1724607586244,0.13916938,64153.0,64149.0,0.1]
[1724607586446,0.1090711,64156.0,64152.0,0.4508]
[1724607586648,0.1090711,64156.0,64155.0,0.09]
[1724607587536,0.10890719,64157.0,64156.0,0.077897]
[1724607587744,0.10890719,64157.0,64156.0,0.167897]
[1724607588648,0.10890719,64161.0,64156.0,0.167897]
[1724607588852,0.10890719,64161.0,64160.0,0.4508]
[1724607589539,0.18679819,64162.0,64160.0,0.4508]
[1724607589945,0.18679819,64162.0,64160.0,0.4518]
[1724607590455,0.077891,64161.0,64160.0,0.3618]
[1724607590640,0.18679819,64161.0,64160.0,0.4518]
[1724607591653,0.077891,64161.0,64160.0,0.51503477]
[1724607592755,0.10564211,64165.0,64160.0,0.51503477]
[1724607592953,0.077887,64165.0,64164.0,0.13652758]
[1724607594052,0.077887,64165.0,64164.0,0.13752758]
[1724607594752,0.077887,64165.0,64164.0,0.091]
[1724607595147,0.077887,64165.0,64164.0,0.092]
[1724607597647,0.077887,64165.0,64164.0,0.002]
[1724607598065,0.077887,64165.0,64164.0,0.112]
[1724607598652,0.077887,64165.0,64164.0,0.189888]
[1724607602548,0.02823874,64166.0,64165.0,0.077887]
[1724607602756,0.077882,64169.0,64165.0,0.177887]
[1724607603060,0.077882,64169.0,64168.0,0.4508]
[1724607603356,0.10601727,64169.0,64168.0,0.4708]
[1724607604659,0.10601727,64169.0,64168.0,0.3808]
[1724607605450,0.10601727,64169.0,64168.0,0.3818]
[1724607606062,0.10601727,64169.0,64168.0,0.3828]
[1724607608254,0.10601727,64169.0,64168.0,0.022]
[1724607608455,0.10601727,64169.0,64168.0,0.021]
[1724607608657,0.10601727,64169.0,64168.0,0.022]
[1724607609461,0.10601727,64169.0,64168.0,0.06849663]
[1724607610058,0.19601727,64169.0,64168.0,0.06849663]
[1724607611164,0.19601727,64169.0,64168.0,0.021]
[1724607611361,0.19601727,64169.0,64168.0,0.022]
[1724607611761,0.10601727,64169.0,64168.0,0.022]
[1724607612163,0.10601727,64169.0,64168.0,0.021]
[1724607612361,0.10601727,64169.0,64168.0,0.022]
[1724607614057,0.10601727,64169.0,64168.0,0.021]
[1724607614264,0.10601727,64169.0,64168.0,0.08423477]
[1724607614561,0.10601727,64169.0,64168.0,0.022]
[1724607614768,0.14415695,64169.0,64168.0,0.022]
[1724607616465,0.19196246,64169.0,64168.0,0.022]
[1724607618067,0.19196491,64169.0,64168.0,0.021]
[1724607618269,0.19196491,64169.0,64168.0,0.022]
[1724607620666,0.19196491,64169.0,64168.0,0.002]
[1724607621781,0.10601727,64169.0,64168.0,0.002]
[1724607629577,0.10601727,64169.0,64168.0,0.07979347]
[1724607629773,0.10601727,64169.0,64168.0,0.04862732]
[1724607631372,0.10601727,64169.0,64168.0,0.002]
[1724607631575,0.46752,64168.0,64166.0,0.04664111]
[1724607631785,0.46752,64168.0,64155.0,0.3608]
[1724607631786,0.167884,64167.0,64160.0,0.04664111]
[1724607631985,0.3608,64161.0,64158.0,0.04664111]
[1724607632181,0.09,64159.0,64158.0,0.04664111]
[1724607632386,0.077896,64157.0,64156.0,0.06240364]
[1724607632575,0.077896,64157.0,64156.0,0.01023387]
[1724607633181,0.077896,64157.0,64156.0,0.00023387]
[1724607634289,0.077896,64157.0,64156.0,0.00523387]
[1724607634680,0.077896,64157.0,64156.0,0.00923387]
[1724607635385,0.077897,64156.0,64149.0,0.04662729]
[1724607635601,0.077897,64156.0,64148.0,0.0004]
[1724607635602,0.3608,64150.0,64148.0,0.0004]
[1724607635997,0.0491,64149.0,64148.0,0.0004]
[1724607636388,0.0476,64155.0,64154.0,0.0779]
[1724607636389,0.00023326,64155.0,64154.0,0.0779]
[1724607636581,0.077887,64165.0,64154.0,0.0779]
[1724607636582,0.077887,64165.0,64155.0,0.077898]
[1724607636782,0.077882,64169.0,64164.0,0.09]
[1724607636986,0.077882,64169.0,64168.0,0.09]
[1724607637683,0.077882,64169.0,64168.0,0.0904]
[1724607638989,0.092882,64169.0,64168.0,0.0924]
[1724607644691,0.092882,64169.0,64168.0,0.1024]
[1724607644887,0.092882,64169.0,64168.0,0.0924]
[1724607646498,0.092882,64169.0,64168.0,0.0024]
[1724607648201,0.092882,64169.0,64168.0,0.0124]
[1724607650004,0.092882,64169.0,64168.0,0.0024]
[1724607651899,0.23469738,64169.0,64168.0,0.0024]
[1724607653003,0.23469738,64169.0,64162.0,0.00023387]
[1724607653004,1.75564314,64169.0,64162.0,0.00023387]
[1724607653200,0.4508,64163.0,64162.0,0.00023387]
[1724607653396,0.59261538,64163.0,64162.0,0.00023387]
[1724607653593,0.53675115,64163.0,64162.0,0.00023387]
[1724607653791,0.61464015,64163.0,64162.0,0.00023387]
[1724607654296,0.61564015,64163.0,64162.0,0.00023387]
[1724607654602,0.25484015,64163.0,64162.0,0.00023387]
[1724607654794,0.25784015,64163.0,64162.0,0.00023387]
[1724607656811,0.25784624,64163.0,64162.0,0.00023387]
[1724607657307,0.31371047,64163.0,64162.0,0.00023387]
[1724607658618,0.25229828,64163.0,64162.0,0.00023387]
[1724607658917,0.25229828,64163.0,64162.0,0.01023387]
[1724607659415,0.19643405,64163.0,64162.0,0.01023387]
[1724607659810,0.19643405,64163.0,64162.0,0.10023387]
[1724607660006,0.081889,64163.0,64162.0,0.16228774]
[1724607660612,0.081889,64163.0,64162.0,0.10023387]
[1724607660922,0.081889,64163.0,64162.0,0.17812387]
[1724607662017,0.004,64163.0,64162.0,0.17812387]
[1724607663323,0.077883,64168.0,64163.0,0.077888]
[1724607663619,0.0479,64173.0,64169.0,0.077881]
[1724607663620,0.077877,64173.0,64169.0,0.077881]
[1724607663810,0.077877,64173.0,64172.0,0.4508]
[1724607664009,0.077877,64173.0,64172.0,0.53285472]
[1724607664210,0.077877,64173.0,64172.0,0.4708]
[1724607665319,0.004,64173.0,64172.0,0.53285472]
[1724607665520,0.004,64173.0,64172.0,0.4708]
[1724607665919,0.004,64173.0,64172.0,0.4718]
[1724607666816,0.015,64173.0,64172.0,0.4728]
[1724607667413,0.00096613,64173.0,64172.0,0.5202]
[1724607667614,0.00096613,64173.0,64172.0,0.6138]
[1724607668616,0.00096613,64173.0,64172.0,0.67576959]
[1724607669723,0.00096613,64173.0,64172.0,0.6138]
[1724607671917,0.00096613,64173.0,64172.0,0.6142]
[1724607672224,0.00096613,64173.0,64172.0,0.5242]
[1724607672822,0.00096613,64173.0,64172.0,0.57062008]
[1724607673221,0.00096613,64173.0,64172.0,0.93142008]
[1724607674821,0.00096613,64173.0,64172.0,0.20982008]
[1724607675019,0.08689621,64173.0,64172.0,0.885]
[1724607675421,0.08689621,64173.0,64172.0,0.744]
[1724607676622,0.08689621,64173.0,64172.0,0.3832]
[1724607676819,0.03909911,64173.0,64172.0,0.3832]
[1724607677527,0.20987105,64173.0,64172.0,0.3832]
[1724607678118,0.11697611,64173.0,64172.0,0.3832]
[1724607678324,0.16477321,64173.0,64172.0,0.3832]
[1724607678526,0.11697611,64173.0,64172.0,0.3832]
[1724607678724,0.28775204,64173.0,64172.0,0.3832]
[1724607678923,0.28775588,64173.0,64172.0,0.3832]
[1724607679222,0.11697995,64173.0,64172.0,0.3832]
[1724607679424,0.16478186,64173.0,64172.0,0.3832]
[1724607681830,0.16478186,64173.0,64172.0,0.0224]
[1724607682016,0.07884313,64173.0,64172.0,0.0224]
[1724607683928,0.07884313,64173.0,64172.0,0.3832]
[1724607685219,0.00096613,64173.0,64172.0,0.3832]
[1724607685436,0.00096613,64173.0,64172.0,0.461078]
[1724607686425,0.00096613,64173.0,64172.0,0.460078]
[1724607686625,0.00096613,64173.0,64172.0,0.461078]
[1724607686626,0.00196613,64173.0,64172.0,0.461078]
[1724607687127,0.005,64173.0,64172.0,0.461078]
[1724607687525,0.005,64173.0,64172.0,0.50749808]
[1724607688526,0.005,64173.0,64172.0,0.461078]
[1724607690129,0.14473561,64173.0,64172.0,0.461078]
[1724607690325,0.04313368,64173.0,64172.0,0.461078]
[1724607690632,0.14473561,64173.0,64172.0,0.461078]
[1724607691531,0.04313368,64173.0,64172.0,0.461078]
[1724607691736,0.005,64173.0,64172.0,0.461078]
[1724607692034,0.005,64173.0,64172.0,0.551078]
[1724607693341,0.005,64173.0,64172.0,1.418558]
[1724607696928,0.005,64173.0,64172.0,0.551078]
[1724607697128,0.005,64173.0,64172.0,1.018558]
[1724607698724,0.005,64173.0,64172.0,0.551078]
[1724607699730,0.005,64173.0,64172.0,1.09612753]
[1724607699926,0.005,64173.0,64172.0,1.21478396]
[1724607700135,0.005,64173.0,64172.0,0.551078]
[1724607703843,0.005,64173.0,64172.0,0.6697331]
[1724607704144,0.005,64173.0,64172.0,0.74710885]
[1724607704337,0.005,64173.0,64172.0,0.6697331]
[1724607704534,0.005,64173.0,64172.0,0.7471039]
[1724607704737,0.005,64173.0,64172.0,0.6697331]
[1724607705141,0.12941868,64173.0,64172.0,0.551078]
[1724607705341,0.04312914,64173.0,64172.0,0.551078]
[1724607705540,0.12930249,64173.0,64172.0,0.551078]
[1724607705749,0.04312914,64173.0,64172.0,0.551078]
[1724607706041,0.005,64173.0,64172.0,0.551078]
[1724607706645,0.004,64173.0,64172.0,0.552078]
[1724607707640,0.13997102,64176.0,64175.0,0.077875]
[1724607707841,0.13997102,64176.0,64175.0,0.628675]
[1724607708245,0.03812911,64179.0,64178.0,0.077871]
[1724607708443,0.15526179,64179.0,64178.0,0.277871]
[1724607708636,0.1933909,64179.0,64178.0,0.277871]
[1724607708837,0.15526179,64180.0,64179.0,0.07787]
[1724607709040,0.19339189,64180.0,64179.0,0.27787]
[1724607709242,0.0381301,64180.0,64179.0,0.27787]
[1724607709644,0.0381301,64180.0,64179.0,0.27827]
[1724607710448,0.0381301,64180.0,64179.0,0.63907]
[1724607711539,0.0411301,64180.0,64179.0,0.63907]
[1724607712249,0.001,64180.0,64179.0,0.71644032]
[1724607712443,0.001,64180.0,64179.0,0.8350985]
[1724607713453,0.001,64180.0,64179.0,0.75772818]
[1724607717348,0.001,64180.0,64179.0,0.75772415]
[1724607719347,0.001,64180.0,64179.0,0.85124256]
[1724607720055,0.001,64180.0,64179.0,0.99987]
[1724607722455,0.001,64180.0,64179.0,1.19604438]
[1724607723959,0.001,64180.0,64179.0,1.11852751]
[1724607724953,0.001,64180.0,64179.0,1.19609818]
[1724607725461,0.001,64180.0,64179.0,1.11852751]
[1724607727053,0.08692154,64180.0,64179.0,0.99987]
[1724607729269,0.03912919,64180.0,64179.0,0.99987]
[1724607729671,0.21048657,64180.0,64179.0,0.99987]
[1724607731275,0.03912919,64180.0,64179.0,0.99987]
[1724607731470,0.21048657,64180.0,64179.0,0.99987]
[1724607732473,0.03912919,64180.0,64179.0,0.99987]
[1724607735071,0.001,64180.0,64179.0,1.11852592]
[1724607736268,0.001,64180.0,64179.0,1.02852592]
[1724607736480,0.001,64180.0,64179.0,1.10614564]
[1724607736676,0.001,64180.0,64179.0,1.19614564]
[1724607737271,0.001,64180.0,64179.0,1.07748558]
[1724607737471,0.001,64180.0,64179.0,1.19614576]
[1724607737872,0.001,64180.0,64179.0,1.07748558]
[1724607738382,0.001,64180.0,64179.0,1.19614513]
[1724607738682,0.001,64180.0,64179.0,1.07748558]
[1724607739282,0.001,64180.0,64179.0,0.99987]
[1724607742172,0.03913078,64180.0,64179.0,0.99987]
[1724607744979,0.21047988,64180.0,64179.0,0.99987]
[1724607745183,0.1723491,64180.0,64179.0,0.99987]
[1724607745381,0.03913136,64180.0,64179.0,0.99987]
[1724607745682,0.08692643,64180.0,64179.0,0.99987]
[1724607748987,0.08692643,64180.0,64179.0,0.27827]
[1724607749185,0.08692643,64180.0,64179.0,0.63907]
[1724607749383,0.001,64180.0,64179.0,0.63907]
[1724607756401,0.001,64180.0,64179.0,0.71668558]
[1724607756683,0.001,64180.0,64179.0,0.83534247]
[1724607757385,0.001,64180.0,64179.0,0.71668558]
[1724607759083,0.001,64180.0,64179.0,0.62668558]
[1724607759283,0.001,64180.0,64179.0,0.63907]
[1724607759485,0.001,64180.0,64179.0,0.71668558]
[1724607760793,0.001,64180.0,64179.0,0.35588558]
[1724607760995,0.001,64180.0,64179.0,0.71668558]
[1724607761694,0.001,64180.0,64179.0,0.62668558]
[1724607762589,0.001,64180.0,64179.0,0.74534351]
[1724607762783,0.001,64180.0,64179.0,0.62668558]
[1724607763490,0.001,64180.0,64179.0,0.74534351]
[1724607764089,0.001,64180.0,64179.0,0.54907]
[1724607764293,0.03912995,64180.0,64179.0,0.54907]
[1724607768890,0.08692326,64180.0,64179.0,0.54907]
[1724607769294,0.03912995,64180.0,64179.0,0.54907]
[1724607769497,0.03912985,64180.0,64179.0,0.54907]
[1724607769791,0.08692303,64180.0,64179.0,0.54907]
[1724607769992,0.03912985,64180.0,64179.0,0.54907]
[1724607770390,0.08692303,64180.0,64179.0,0.18827]
[1724607770587,0.03912985,64180.0,64179.0,0.54907]
[1724607770988,0.08692303,64180.0,64179.0,0.54907]
[1724607771189,0.03912985,64180.0,64179.0,0.54907]
[1724607772398,0.001,64180.0,64179.0,0.74534287]
[1724607773393,0.001,64180.0,64179.0,0.38454287]
[1724607773594,0.001,64180.0,64179.0,0.74534287]
[1724607774197,0.001,64180.0,64179.0,0.83534287]
[1724607774400,0.001,64180.0,64179.0,0.83534399]
[1724607774801,0.001,64180.0,64179.0,0.75772841]
[1724607779395,0.08692127,64180.0,64179.0,0.63907]
[1724607780603,0.03912907,64180.0,64179.0,0.63907]
[1724607781806,0.03912907,64180.0,64179.0,0.66341569]
[1724607782111,0.21045864,64180.0,64179.0,0.66341569]
[1724607782713,0.21045864,64180.0,64179.0,0.30261569]
[1724607782914,0.21045864,64180.0,64179.0,1.02421569]
[1724607783505,0.03912907,64180.0,64179.0,1.02421569]
[1724607784214,0.19484548,64180.0,64179.0,0.99987]
[1724607784413,0.19484548,64180.0,64179.0,1.02421468]
[1724607785623,0.03912907,64180.0,64179.0,1.02421468]
[1724607786410,0.1948104,64180.0,64179.0,1.02421468]
[1724607786611,0.03912907,64180.0,64179.0,1.02421468]
[1724607786809,0.1948104,64180.0,64179.0,1.02421468]
[1724607787317,0.03912907,64180.0,64179.0,1.02421468]
[1724607787517,0.15568133,64181.0,64180.0,0.077868]
[1724607787717,0.15568133,64181.0,64180.0,0.40085872]
[1724607788313,0.15568133,64181.0,64180.0,0.40125872]
[1724607788912,0.15568133,64181.0,64180.0,0.37691404]
[1724607789414,0.15568133,64181.0,64180.0,1.09851404]
[1724607789814,0.07474481,64188.0,64185.0,0.077862]
[1724607790012,0.07474481,64188.0,64187.0,0.15202412]
[1724607790213,0.07474481,64188.0,64187.0,0.61282412]
[1724607790718,0.07474481,64188.0,64187.0,0.61322412]
[1724607791710,0.07474481,64188.0,64187.0,0.61422412]
[1724607791912,0.07474481,64188.0,64187.0,0.61522412]
[1724607792621,0.07474481,64188.0,64187.0,0.5532]
[1724607793415,0.07474481,64188.0,64187.0,0.61522412]
[1724607794210,0.046,64188.0,64187.0,0.61522412]
[1724607794416,0.13191327,64188.0,64187.0,0.58189837]
[1724607794619,0.13191327,64188.0,64187.0,0.65975837]
[1724607794620,0.14175288,64188.0,64187.0,0.65975837]
[1724607794919,0.08591327,64188.0,64187.0,0.65975837]
[1724607795114,0.08591327,64188.0,64187.0,0.77547837]
[1724607795522,0.25701421,64188.0,64187.0,0.65975837]
[1724607795723,0.08591327,64188.0,64187.0,0.65975837]
[1724607796516,0.25698259,64188.0,64187.0,0.65975837]
[1724607796823,0.08591327,64188.0,64187.0,0.68410034]
[1724607797018,0.08591327,64188.0,64187.0,0.65975837]
[1724607799222,0.08591327,64188.0,64187.0,0.56975837]
[1724607800721,0.14175288,64188.0,64187.0,0.56975837]
[1724607801117,0.08591327,64188.0,64187.0,0.56975837]
[1724607801317,0.14175288,64188.0,64187.0,0.56975837]
[1724607801918,0.14175288,64188.0,64187.0,0.54106]
[1724607802319,0.08591327,64188.0,64187.0,0.54106]
[1724607802519,0.077853,64193.0,64187.0,0.54106]
[1724607802720,0.077853,64193.0,64191.0,0.09]
[1724607803428,0.077853,64193.0,64192.0,0.0004]
[1724607804226,0.077853,64193.0,64192.0,0.3612]
[1724607804428,0.1059543,64193.0,64192.0,0.3612]
[1724607804623,0.1059543,64193.0,64192.0,0.3622]
[1724607805927,0.1059543,64193.0,64192.0,0.3722]
[1724607806228,0.1059543,64193.0,64192.0,0.0124]
[1724607806731,0.1059543,64193.0,64192.0,0.3732]
[1724607810235,0.1959543,64193.0,64192.0,0.3732]
[1724607810536,0.1959543,64193.0,64192.0,0.3632]
[1724607812031,0.1959543,64193.0,64192.0,0.0024]
[1724607814723,0.6633143,64193.0,64192.0,0.0024]
[1724607817439,0.74923089,64193.0,64192.0,0.0024]
[1724607818737,0.80507266,64193.0,64192.0,0.0024]
[1724607819330,0.74923089,64193.0,64192.0,0.0024]
[1724607819531,0.33771266,64193.0,64192.0,0.0024]
[1724607821835,0.33771267,64193.0,64192.0,0.0024]
[1724607824539,0.1959543,64193.0,64192.0,0.0024]
[1724607830548,0.7411683,64193.0,64192.0,0.0024]
[1724607830753,0.07786,64187.0,64186.0,0.00023368]
[1724607830953,0.16786,64187.0,64186.0,0.00023368]
[1724607832245,0.16986,64187.0,64186.0,0.00223368]
[1724607832547,0.31163831,64187.0,64186.0,0.00223368]
[1724607833353,0.077865,64183.0,64182.0,0.3608]
[1724607833545,0.25379368,64183.0,64182.0,0.3608]
[1724607833855,1.12119368,64183.0,64182.0,0.3608]
[1724607834746,1.12119368,64183.0,64176.0,0.00023368]
[1724607834747,0.167872,64177.0,64176.0,0.00023368]
[1724607834949,0.25380068,64177.0,64176.0,0.00023368]
[1724607835351,0.61460068,64177.0,64176.0,0.00023368]
[1724607836049,0.61460068,64177.0,64176.0,0.00123368]
[1724607838362,0.67045031,64177.0,64176.0,0.00123368]
[1724607838550,0.61460068,64177.0,64176.0,0.00123368]
[1724607839165,0.64232926,64177.0,64176.0,0.00123368]
[1724607839545,0.55640058,64177.0,64176.0,0.00123368]
[1724607840353,0.46640058,64177.0,64176.0,0.00123368]
[1724607840555,0.46640058,64177.0,64176.0,0.01123368]
[1724607847353,0.38852858,64177.0,64176.0,0.01123368]
[1724607847563,0.38852858,64177.0,64176.0,0.08910768]
[1724607850559,0.3608,64177.0,64176.0,0.08910768]
[1724607853060,0.36272001,64183.0,64182.0,0.077866]
[1724607853061,0.00192001,64183.0,64182.0,0.077866]
[1724607853367,0.3608,64189.0,64183.0,0.077864]
[1724607853564,0.3608,64189.0,64183.0,0.117864]
[1724607853757,0.09,64187.0,64183.0,0.117864]
[1724607854762,0.17090224,64185.0,64183.0,0.117864]
[1724607854959,0.03813021,64184.0,64183.0,0.117864]
[1724607855561,0.08592384,64184.0,64183.0,0.117864]
[1724607855769,0.03813021,64184.0,64183.0,0.117864]
[1724607856563,0.08592384,64184.0,64183.0,0.118864]
[1724607856871,0.03813021,64184.0,64183.0,0.118864]
[1724607857060,0.03813021,64184.0,64183.0,0.117864]
[1724607857257,0.04013021,64184.0,64183.0,0.118864]
[1724607857457,0.08792384,64184.0,64183.0,0.118864]
[1724607858169,0.08992384,64184.0,64183.0,0.118864]
[1724607859170,0.04213021,64184.0,64183.0,0.118864]
[1724607859561,0.2131912,64184.0,64183.0,0.118864]
[1724607860466,0.04213021,64184.0,64183.0,0.118864]
[1724607860864,0.08992384,64184.0,64183.0,0.118864]
[1724607862774,0.08992384,64184.0,64183.0,0.14686697]
[1724607862775,0.09731606,64184.0,64183.0,0.14686697]
[1724607863169,0.004,64184.0,64183.0,0.14686697]
[1724607869686,0.00192001,64192.0,64191.0,0.077855]
[1724607869874,0.14174924,64192.0,64191.0,0.09]
[1724607870480,0.14174924,64192.0,64191.0,0.1004]
[1724607870678,0.14374924,64192.0,64191.0,0.1014]
[1724607870883,0.14574924,64192.0,64191.0,0.1024]
[1724607874076,0.14575373,64192.0,64191.0,0.1024]
[1724607875391,0.22360773,64192.0,64191.0,0.1024]
[1724607877582,0.42623349,64192.0,64191.0,0.0024]
[1724607877790,0.33317976,64192.0,64191.0,0.0024]
[1724607878081,0.130554,64192.0,64191.0,0.0024]
[1724607884689,0.21647652,64192.0,64191.0,0.0024]
[1724607886587,0.57727652,64192.0,64191.0,0.0024]
[1724607886985,0.21647652,64192.0,64191.0,0.0024]
[1724607887186,0.57727652,64192.0,64191.0,0.0024]
[1724607888792,0.5772752,64192.0,64191.0,0.0024]
[1724607889394,0.5752752,64192.0,64191.0,0.0024]
[1724607890190,0.5732752,64192.0,64191.0,0.0024]
[1724607892894,0.487354,64192.0,64191.0,0.0024]
[1724607895398,0.565208,64192.0,64191.0,0.0024]
[1724607899495,0.204408,64192.0,64191.0,0.0024]
[1724607899691,0.565208,64192.0,64191.0,0.0024]
[1724607907904,0.6511381,64192.0,64191.0,0.0024]
[1724607908208,0.55464099,64192.0,64191.0,0.0024]
[1724607911910,0.55463843,64192.0,64191.0,0.0024]
[1724607913804,0.60243234,64192.0,64191.0,0.0024]
[1724607914701,0.60243234,64192.0,64191.0,0.0014]
[1724607914904,0.516508,64192.0,64191.0,0.0024]
[1724607916713,0.155708,64192.0,64191.0,0.0024]
[1724607917012,0.516508,64192.0,64191.0,0.0024]
[1724607918301,0.155708,64192.0,64191.0,0.0024]
[1724607918498,0.516508,64192.0,64191.0,0.0024]
[1724607919114,0.516508,64192.0,64191.0,0.00214765]
[1724607920205,0.516508,64192.0,64191.0,0.002]
[1724607922106,0.62554108,64192.0,64191.0,0.002]
[1724607922303,0.516508,64192.0,64191.0,0.002]
[1724607922507,0.62554108,64192.0,64191.0,0.002]
[1724607923715,0.516508,64192.0,64191.0,0.002]
[1724607924113,0.98635188,64192.0,64191.0,0.002]
[1724607924520,0.91544092,64192.0,64191.0,0.002]
[1724607925518,0.877308,64192.0,64191.0,0.002]
[1724607925914,0.91544102,64192.0,64191.0,0.002]
[1724607926118,0.077866,64183.0,64179.0,0.0946]
[1724607926309,0.7216,64180.0,64179.0,0.0946]
[1724607926510,0.7216,64180.0,64179.0,0.1189507]
[1724607927006,0.7216,64180.0,64173.0,0.45206548]
[1724607927007,0.077871,64178.0,64173.0,0.00088]
[1724607927212,0.077872,64177.0,64170.0,0.18590948]
[1724607927411,0.077872,64177.0,64170.0,0.1394]
[1724607927921,0.078272,64177.0,64170.0,0.1394]
[1724607928118,0.078272,64177.0,64176.0,0.00623368]
[1724607929420,0.078272,64177.0,64176.0,0.01223368]
[1724607930306,0.799872,64177.0,64176.0,0.00023368]
[1724607930510,0.799872,64177.0,64176.0,0.01223368]
[1724607931216,0.889872,64177.0,64176.0,0.00623368]
[1724607931413,0.890872,64177.0,64176.0,0.00723368]
[1724607931915,0.890872,64177.0,64176.0,0.00623368]
[1724607932307,0.890872,64177.0,64176.0,0.00123368]
[1724607932514,0.897872,64177.0,64176.0,0.00123368]
[1724607933717,0.896872,64177.0,64176.0,0.00123368]
[1724607933917,0.897872,64177.0,64176.0,0.00223368]
[1724607934119,0.807872,64177.0,64176.0,0.00223368]
[1724607939018,0.897872,64177.0,64176.0,0.00223368]
[1724607941317,0.897872,64177.0,64176.0,0.01223368]
[1724607942125,0.895872,64177.0,64176.0,0.01123368]
[1724607942622,0.800872,64177.0,64176.0,0.10023368]
[1724607942823,0.728,64177.0,64176.0,0.17810668]
[1724607943216,0.727,64177.0,64176.0,0.17810668]
[1724607943415,0.727,64177.0,64176.0,0.2401308]
[1724607943416,0.728,64177.0,64176.0,0.2401308]
[1724607943818,0.727,64177.0,64176.0,0.2401308]
[1724607944023,0.726,64177.0,64176.0,0.2401308]
[1724607944220,0.726,64177.0,64176.0,0.2431308]
[1724607945126,0.726,64177.0,64176.0,0.18110668]
[1724607945332,0.722,64177.0,64176.0,0.18110668]
[1724607945626,0.722,64177.0,64176.0,0.211765]
[1724607945822,0.3612,64177.0,64176.0,0.210765]
[1724607946018,0.3612,64177.0,64176.0,0.209765]
[1724607948628,0.3612,64177.0,64176.0,0.208765]
[1724607948830,0.3612,64177.0,64176.0,0.207765]
[1724607949627,0.3612,64177.0,64176.0,0.208765]
[1724607950434,0.0014,64177.0,64176.0,0.206765]
[1724607950633,0.3622,64177.0,64176.0,0.206765]
[1724607952133,0.440072,64177.0,64176.0,0.038892]
[1724607952331,0.440072,64177.0,64176.0,0.01023368]
[1724607952535,0.440072,64177.0,64176.0,0.06224228]
[1724607952737,0.440072,64177.0,64176.0,0.00023368]
[1724607953328,0.440072,64177.0,64176.0,0.00223368]
[1724607953529,0.442072,64177.0,64176.0,0.00223368]
[1724607955336,0.442072,64177.0,64176.0,0.06424228]
[1724607955634,0.443072,64177.0,64176.0,0.06224228]
[1724607955932,0.084272,64177.0,64176.0,0.06224228]
[1724607956138,0.445072,64177.0,64176.0,0.06224228]
[1724607956329,0.444072,64177.0,64176.0,0.06224228]
[1724607956530,0.445072,64177.0,64176.0,0.06224228]
[1724607956926,0.445072,64177.0,64176.0,0.00023368]
[1724607957235,0.445072,64177.0,64176.0,0.06224228]
[1724607958139,0.445072,64177.0,64176.0,0.00023368]
[1724607958734,0.445072,64177.0,64176.0,0.06230443]
[1724607958935,0.445072,64177.0,64176.0,0.06230354]
[1724607959132,0.445072,64177.0,64176.0,0.00023368]
[1724607968861,0.447072,64177.0,64176.0,0.00123368]
[1724607973461,0.524944,64177.0,64176.0,0.00123368]
[1724607973660,0.524944,64177.0,64176.0,0.06332881]
[1724607973857,0.524944,64177.0,64176.0,0.00123368]
[1724607975065,0.56308325,64177.0,64176.0,0.00123368]
[1724607975254,0.68766479,64177.0,64176.0,0.00123368]
[1724607976165,0.56308325,64177.0,64176.0,0.00123368]
[1724607977270,0.68766461,64177.0,64176.0,0.00123368]
[1724607978360,0.56308325,64177.0,64176.0,0.00123368]
[1724607978562,0.56308475,64177.0,64176.0,0.00123368]
[1724607981064,0.68766611,64177.0,64176.0,0.00123368]
[1724607982064,0.524944,64177.0,64176.0,0.04780385]
[1724607982660,0.524944,64177.0,64176.0,0.00123368]
[1724607983564,0.602816,64177.0,64176.0,0.00123368]
[1724607986178,0.963616,64177.0,64176.0,0.00123368]
[1724607988777,0.242016,64177.0,64176.0,0.00123368]
[1724607988963,0.963616,64177.0,64176.0,0.00123368]
[1724607992881,0.242016,64177.0,64176.0,0.00123368]
[1724607993178,0.963616,64177.0,64176.0,0.00123368]
[1724607993577,0.242016,64177.0,64176.0,0.00123368]
[1724607993770,0.963616,64177.0,64176.0,0.00123368]
[1724607997579,1.07262109,64177.0,64176.0,0.00123368]
[1724607999085,0.963616,64177.0,64176.0,0.00123368]
[1724608001578,0.242016,64177.0,64176.0,0.00123368]
[1724608001789,0.963616,64177.0,64176.0,0.00123368]